bitfinex/quotes_BTCUSD_20250713
["timestamp","ask_amount","ask_price","bid_price","bid_amount"]
[1752425002913,0.65981152,118680.0,118670.0,0.75779993]
[1752425003124,0.70181152,118680.0,118670.0,0.75779993]
[1752425003365,0.65981152,118680.0,118670.0,0.75779993]
[1752425004938,0.70181152,118680.0,118670.0,0.75779993]
[1752425009927,0.384,118680.0,118670.0,0.75779993]
[1752425010163,0.70181152,118680.0,118670.0,0.75779993]
[1752425010594,0.72001152,118680.0,118670.0,0.75779993]
[1752425011222,0.73541152,118680.0,118670.0,0.75779993]
[1752425011427,0.73541152,118680.0,118670.0,0.75455993]
[1752425016452,0.69341152,118680.0,118670.0,0.75455993]
[1752425016699,0.73541152,118680.0,118670.0,0.75455993]
[1752425017228,0.85203452,118680.0,118670.0,0.75455993]
[1752425017505,0.89403452,118680.0,118670.0,0.75455993]
[1752425017693,0.85203452,118680.0,118670.0,0.75455993]
[1752425018103,0.89403452,118680.0,118670.0,0.75455993]
[1752425018541,0.4176,118680.0,118670.0,0.75455993]
[1752425018757,0.89403452,118680.0,118670.0,0.75455993]
[1752425020965,0.85203452,118680.0,118670.0,0.75455993]
[1752425021168,0.89403452,118680.0,118670.0,0.75455993]
[1752425025601,0.85203452,118680.0,118670.0,0.75455993]
[1752425025814,0.89403452,118680.0,118670.0,0.75455993]
[1752425026240,0.85203452,118680.0,118670.0,0.75455993]
[1752425026443,0.89403452,118680.0,118670.0,0.75455993]
[1752425029232,0.85203452,118680.0,118670.0,0.75455993]
[1752425029447,0.89403452,118680.0,118670.0,0.75455993]
[1752425033697,0.3756,118680.0,118670.0,0.75455993]
[1752425033966,0.25841726,118680.0,118670.0,0.75775993]
[1752425035063,0.25741726,118680.0,118670.0,0.75775993]
[1752425035301,0.25641726,118680.0,118670.0,0.75975993]
[1752425035513,0.25641726,118680.0,118670.0,0.76075993]
[1752425036196,0.3721,118690.0,118670.0,1.01167719]
[1752425036412,0.63661726,118690.0,118680.0,0.34341643]
[1752425036629,0.63661726,118690.0,118680.0,0.34332993]
[1752425036844,0.63661726,118690.0,118680.0,0.68036993]
[1752425037276,0.65301726,118690.0,118680.0,0.68036993]
[1752425037690,0.3728,118690.0,118680.0,0.68036993]
[1752425037895,0.65301726,118690.0,118680.0,0.68036993]
[1752425038558,0.61101726,118690.0,118680.0,0.68036993]
[1752425038760,0.65301726,118690.0,118680.0,0.68036993]
[1752425042931,0.61101726,118690.0,118680.0,0.68036993]
[1752425043180,0.65498726,118690.0,118680.0,0.68036993]
[1752425043395,0.89638452,118690.0,118680.0,0.68036993]
[1752425044285,0.89638452,118690.0,118680.0,0.67834993]
[1752425048413,0.94638452,118690.0,118680.0,0.67834993]
[1752425052465,0.46995,118690.0,118680.0,0.67834993]
[1752425052693,0.94638452,118690.0,118680.0,0.67834993]
[1752425056381,0.70816726,118690.0,118680.0,0.67834993]
[1752425057733,0.70816726,118690.0,118680.0,0.88018993]
[1752425062654,0.20816726,118690.0,118680.0,0.88540993]
[1752425062936,0.21013726,118690.0,118680.0,0.88540993]
[1752425065684,0.24033726,118690.0,118680.0,0.88540993]
[1752425065900,0.23821726,118690.0,118680.0,0.88540993]
[1752425070086,0.25481726,118690.0,118680.0,0.88540993]
[1752425071097,0.0166,118690.0,118680.0,0.88540993]
[1752425071314,0.25481726,118690.0,118680.0,0.88540993]
[1752425081975,0.0166,118690.0,118680.0,0.88540993]
[1752425082205,0.25481726,118690.0,118680.0,0.88540993]
[1752425082612,0.23821726,118690.0,118680.0,0.88540993]
[1752425084545,0.26981726,118700.0,118680.0,0.88540993]
[1752425084792,0.26981726,118700.0,118690.0,0.25576]
[1752425085015,0.26981726,118700.0,118690.0,0.34645993]
[1752425085226,0.25461726,118700.0,118690.0,0.68346993]
[1752425086709,0.25661726,118700.0,118690.0,0.68346993]
[1752425091255,0.25661726,118700.0,118690.0,0.88530993]
[1752425097358,0.28187226,118700.0,118690.0,0.88530993]
[1752425098863,0.027255,118700.0,118690.0,0.88530993]
[1752425099083,0.26547226,118700.0,118690.0,0.88530993]
[1752425099873,0.24021726,118700.0,118690.0,0.88530993]
[1752425100700,0.26547026,118700.0,118690.0,0.88530993]
[1752425101117,0.24021726,118700.0,118690.0,0.88530993]
[1752425101307,0.26547026,118700.0,118690.0,0.88530993]
[1752425102680,0.50368752,118700.0,118690.0,0.88530993]
[1752425102885,0.53808752,118700.0,118690.0,0.88530993]
[1752425103100,0.53808752,118700.0,118690.0,0.88317993]
[1752425103707,0.53808752,118700.0,118690.0,0.88003993]
[1752425109944,0.061653,118700.0,118690.0,0.88003993]
[1752425110227,0.53808752,118700.0,118690.0,0.88003993]
[1752425113392,0.53808752,118700.0,118690.0,0.88301993]
[1752425115353,0.53808752,118700.0,118690.0,0.88003993]
[1752425116506,1.11630478,118700.0,118690.0,0.66665]
[1752425121176,0.87808752,118700.0,118690.0,0.66665]
[1752425123602,1.83095656,118700.0,118690.0,0.53885]
[1752425123875,2.00181642,118700.0,118690.0,0.53885]
[1752425124105,1.96687649,118700.0,118690.0,0.66665]
[1752425125163,1.17311019,118700.0,118690.0,0.66665]
[1752425125834,1.17211019,118700.0,118690.0,0.66665]
[1752425126042,1.17411019,118700.0,118690.0,0.66665]
[1752425126251,1.17311019,118700.0,118690.0,0.66665]
[1752425126469,1.17511019,118700.0,118690.0,0.66665]
[1752425126675,1.17311019,118700.0,118690.0,0.66665]
[1752425126891,1.17411019,118700.0,118690.0,0.66665]
[1752425127105,1.17711019,118700.0,118690.0,0.66665]
[1752425128595,1.19165104,118700.0,118690.0,0.66665]
[1752425135406,1.27708097,118700.0,118690.0,0.66665]
[1752425135667,1.19165104,118700.0,118690.0,0.66665]
[1752425138669,0.87388241,118700.0,118690.0,0.66665]
[1752425139100,0.85934156,118700.0,118690.0,0.66665]
[1752425139557,0.72342163,118700.0,118690.0,0.66989]
[1752425139784,0.72342163,118700.0,118690.0,0.67203]
[1752425140004,0.70432163,118700.0,118690.0,0.67203]
[1752425140878,0.68902163,118700.0,118690.0,0.67203]
[1752425141335,0.371253,118700.0,118690.0,0.67203]
[1752425141542,0.031253,118700.0,118690.0,0.70843]
[1752425141761,0.371253,118700.0,118690.0,0.70843]
[1752425141982,0.34902163,118700.0,118690.0,0.70843]
[1752425142422,0.34602163,118700.0,118690.0,0.70843]
[1752425142855,0.34302163,118700.0,118690.0,0.70843]
[1752425143287,0.34502163,118700.0,118690.0,0.70843]
[1752425143901,0.34302163,118700.0,118690.0,0.70843]
[1752425144306,0.34402163,118700.0,118690.0,0.70843]
[1752425144951,0.34602163,118700.0,118690.0,0.70843]
[1752425145442,0.34402163,118700.0,118690.0,0.70843]
[1752425145931,0.34502163,118700.0,118690.0,0.70843]
[1752425150249,0.34502163,118700.0,118690.0,0.69083]
[1752425151078,0.34502163,118700.0,118690.0,0.67203]
[1752425151701,0.027253,118700.0,118690.0,0.67203]
[1752425151917,0.027253,118700.0,118690.0,0.69093]
[1752425152071,0.68502163,118700.0,118690.0,0.69093]
[1752425153287,0.68502163,118700.0,118690.0,0.79515993]
[1752425153487,0.367253,118700.0,118690.0,0.79515993]
[1752425153689,0.002,118700.0,118690.0,0.79515993]
[1752425155720,0.001,118700.0,118690.0,0.79515993]
[1752425155958,0.34302163,118710.0,118690.0,0.79515993]
[1752425156167,0.34317126,118710.0,118700.0,0.38002993]
[1752425156381,0.34317126,118710.0,118700.0,0.38217993]
[1752425157473,0.34417126,118710.0,118700.0,0.38217993]
[1752425158088,0.34517126,118710.0,118700.0,0.38217993]
[1752425162667,0.34517126,118710.0,118700.0,0.71915993]
[1752425169785,0.02740263,118710.0,118700.0,0.71915993]
[1752425170016,0.34517126,118710.0,118700.0,0.71915993]
[1752425170735,0.02740263,118710.0,118700.0,0.71915993]
[1752425170977,0.34517126,118710.0,118700.0,0.71915993]
[1752425171384,0.00214963,118710.0,118700.0,0.71915993]
[1752425178519,0.00214963,118710.0,118700.0,1.03692856]
[1752425178796,0.00214963,118710.0,118700.0,0.71915993]
[1752425178976,0.00214963,118710.0,118700.0,1.03692856]
[1752425179208,0.00114963,118710.0,118700.0,1.03692856]
[1752425179850,0.00014963,118710.0,118700.0,0.71915993]
[1752425180100,0.00014963,118710.0,118700.0,0.72115993]
[1752425180755,0.00014963,118710.0,118700.0,0.72615993]
[1752425181174,0.00014963,118710.0,118700.0,0.72815993]
[1752425185195,0.38513103,118710.0,118700.0,0.69255993]
[1752425185631,0.40233103,118710.0,118700.0,0.69255993]
[1752425186059,0.41973103,118710.0,118700.0,0.69255993]
[1752425186552,0.41973103,118710.0,118700.0,0.68555993]
[1752425186764,0.41973103,118710.0,118700.0,0.68044993]
[1752425186988,0.75973103,118710.0,118700.0,0.59502]
[1752425187215,0.78498603,118710.0,118700.0,0.59502]
[1752425187420,0.78498603,118710.0,118700.0,0.59702]
[1752425189639,0.78498603,118710.0,118700.0,0.59502]
[1752425190003,0.78498603,118710.0,118700.0,0.59602]
[1752425191579,0.78498603,118710.0,118700.0,0.59502]
[1752425191789,0.71777326,118710.0,118700.0,0.59502]
[1752425192527,0.71777326,118710.0,118700.0,0.59302]
[1752425192940,0.71777326,118710.0,118700.0,0.59402]
[1752425198087,0.71777326,118710.0,118700.0,0.33798]
[1752425198292,0.71777326,118710.0,118700.0,0.46578]
[1752425201351,0.40000463,118710.0,118700.0,0.46578]
[1752425201724,0.71777326,118710.0,118700.0,0.46578]
[1752425204892,0.40000463,118710.0,118700.0,0.46578]
[1752425205101,0.71777326,118710.0,118700.0,0.46887]
[1752425212302,0.71777326,118710.0,118700.0,0.46578]
[1752425213222,0.71777326,118710.0,118700.0,0.46582]
[1752425214246,0.71877326,118710.0,118700.0,0.46482]
[1752425214453,0.72077326,118710.0,118700.0,0.46482]
[1752425214657,0.71977326,118710.0,118700.0,0.46482]
[1752425215055,0.72177326,118710.0,118700.0,0.46482]
[1752425215261,0.72177326,118710.0,118700.0,0.33698]
[1752425215458,0.72177326,118710.0,118700.0,0.45486]
[1752425217588,0.40400463,118710.0,118700.0,0.4579]
[1752425217789,0.72177326,118710.0,118700.0,0.45991]
[1752425220640,0.72177326,118710.0,118700.0,0.45486]
[1752425227019,0.70437326,118710.0,118700.0,0.45991]
[1752425227157,0.72267326,118710.0,118700.0,0.45991]
[1752425228474,0.72267326,118710.0,118700.0,0.66175]
[1752425235331,0.72267326,118710.0,118700.0,0.65974]
[1752425235529,0.72267326,118710.0,118700.0,0.6567]
[1752425235913,1.12587182,118710.0,118700.0,0.6567]
[1752425236353,1.34354537,118710.0,118700.0,0.6567]
[1752425236549,1.36169614,118710.0,118700.0,0.6567]
[1752425237549,1.35769614,118710.0,118700.0,0.6567]
[1752425237783,1.36069614,118710.0,118700.0,0.6567]
[1752425238027,1.35769614,118710.0,118700.0,0.6567]
[1752425238269,1.36269614,118710.0,118700.0,0.6567]
[1752425238755,1.36469614,118710.0,118700.0,0.6567]
[1752425239245,1.36269614,118710.0,118700.0,0.6567]
[1752425239483,1.36569614,118710.0,118700.0,0.6567]
[1752425242163,1.21305344,118710.0,118700.0,0.6567]
[1752425243349,1.19490267,118710.0,118700.0,0.6567]
[1752425243525,0.87713404,118710.0,118700.0,0.6567]
[1752425243726,0.81210319,118710.0,118700.0,0.6567]
[1752425243945,0.81210319,118710.0,118700.0,0.65981]
[1752425244607,1.06210319,118710.0,118700.0,0.65981]
[1752425244818,0.81210319,118710.0,118700.0,0.65981]
[1752425245029,0.81210319,118710.0,118700.0,0.6567]
[1752425247906,0.82664404,118710.0,118700.0,0.6567]
[1752425248335,0.85416498,118710.0,118700.0,0.6567]
[1752425251074,0.90465498,118710.0,118700.0,0.6567]
[1752425251276,0.87713404,118710.0,118700.0,0.6567]
[1752425257352,0.82709319,118710.0,118700.0,0.66195]
[1752425259021,1.07709319,118710.0,118700.0,0.66195]
[1752425259162,1.09339319,118710.0,118700.0,0.66195]
[1752425260022,0.84339319,118710.0,118700.0,0.66195]
[1752425261485,0.85979319,118710.0,118700.0,0.66195]
[1752425261933,0.94522312,118710.0,118700.0,0.65981]
[1752425262163,1.26299175,118710.0,118700.0,0.6567]
[1752425262619,1.17756182,118710.0,118700.0,0.6567]
[1752425264526,0.85979319,118710.0,118700.0,0.6567]
[1752425265348,0.87795118,118710.0,118700.0,0.6567]
[1752425268264,0.87795118,118710.0,118700.0,0.65981]
[1752425270199,0.87795118,118710.0,118700.0,0.6567]
[1752425270845,0.84327686,118710.0,118700.0,0.6567]
[1752425271003,0.82746118,118710.0,118700.0,0.6567]
[1752425271819,0.82746118,118710.0,118700.0,0.65981]
[1752425277870,0.50969255,118710.0,118700.0,0.65981]
[1752425278072,0.80930319,118710.0,118700.0,0.65981]
[1752425278277,0.82746118,118710.0,118700.0,0.65981]
[1752425281092,0.87795118,118710.0,118700.0,0.65981]
[1752425281302,0.56018255,118710.0,118700.0,0.65981]
[1752425281510,0.85979319,118710.0,118700.0,0.65981]
[1752425281725,0.87795118,118710.0,118700.0,0.65981]
[1752425281933,0.87795118,118710.0,118700.0,0.66195]
[1752425282475,0.86155118,118710.0,118700.0,0.66195]
[1752425286603,0.87755118,118710.0,118700.0,0.66195]
[1752425287635,0.86155118,118710.0,118700.0,0.66195]
[1752425291289,0.87725118,118710.0,118700.0,0.66195]
[1752425293005,0.54378255,118710.0,118700.0,0.66195]
[1752425293226,0.03340463,118710.0,118700.0,0.69255]
[1752425293669,0.35117326,118710.0,118700.0,0.69255]
[1752425294085,0.32591826,118710.0,118700.0,0.69255]
[1752425294298,0.66591826,118710.0,118700.0,0.69255]
[1752425294428,0.66091826,118710.0,118700.0,0.69255]
[1752425294827,0.66291826,118710.0,118700.0,0.69255]
[1752425295566,0.65991826,118710.0,118700.0,0.69255]
[1752425295812,0.66191826,118710.0,118700.0,0.69255]
[1752425305304,0.66191826,118710.0,118700.0,0.69265]
[1752425309864,0.66191826,118710.0,118700.0,0.67765]
[1752425310133,0.66191826,118710.0,118700.0,0.53417]
[1752425310341,0.69331826,118710.0,118700.0,0.66345]
[1752425310516,0.71857626,118710.0,118700.0,0.66131]
[1752425310652,0.71857626,118710.0,118700.0,0.66332]
[1752425311981,0.70307626,118710.0,118700.0,0.66332]
[1752425316109,0.68717626,118710.0,118700.0,0.69412]
[1752425325277,0.68717626,118710.0,118700.0,0.67832]
[1752425329977,0.68717626,118710.0,118700.0,0.66332]
[1752425338354,0.71867626,118710.0,118700.0,0.66332]
[1752425339600,0.71867626,118710.0,118700.0,0.6582]
[1752425340549,0.40090763,118710.0,118700.0,0.6582]
[1752425340752,0.71867626,118710.0,118700.0,0.66328]
[1752425342589,0.70267626,118710.0,118700.0,0.66328]
[1752425343131,0.86126949,118710.0,118700.0,0.66328]
[1752425343535,0.84576949,118710.0,118700.0,0.66328]
[1752425343751,0.60758856,118710.0,118700.0,0.69578]
[1752425344206,0.84576949,118710.0,118700.0,0.69578]
[1752425344423,0.84576949,118710.0,118700.0,0.67958]
[1752425344635,0.84376949,118710.0,118700.0,0.67958]
[1752425344843,0.84476949,118710.0,118700.0,0.67958]
[1752425344989,0.84476949,118710.0,118700.0,0.66328]
[1752425345198,0.84276949,118710.0,118700.0,0.66328]
[1752425345684,0.84282266,118710.0,118700.0,0.66328]
[1752425346444,0.84382266,118710.0,118700.0,0.66328]
[1752425346863,0.84376949,118710.0,118700.0,0.66322683]
[1752425348936,0.85926949,118710.0,118700.0,0.66322683]
[1752425349171,0.87556949,118710.0,118700.0,0.66322683]
[1752425349608,1.11375042,118710.0,118700.0,0.65814683]
[1752425352360,1.11375042,118710.0,118700.0,0.66121683]
[1752425353717,1.11375042,118710.0,118700.0,0.65814683]
[1752425354622,1.24967035,118710.0,118700.0,0.65814683]
[1752425360330,2.09596676,118710.0,118700.0,0.65814683]
[1752425361225,2.09496676,118710.0,118700.0,0.65814683]
[1752425361444,2.09396676,118710.0,118700.0,0.65814683]
[1752425361679,2.09796676,118710.0,118700.0,0.65814683]
[1752425361891,2.18339669,118710.0,118700.0,0.65814683]
[1752425362103,2.13339669,118710.0,118700.0,0.65814683]
[1752425362333,2.15154557,118710.0,118700.0,0.65814683]
[1752425362550,1.35157285,118710.0,118700.0,0.65814683]
[1752425362794,1.28436008,118710.0,118700.0,0.66121683]
[1752425363011,0.82239053,118710.0,118700.0,0.66322683]
[1752425364541,0.80424165,118710.0,118700.0,0.66121683]
[1752425364773,0.82237842,118710.0,118700.0,0.65814683]
[1752425365690,1.17330339,118710.0,118700.0,0.65814683]
[1752425370402,1.20502336,118710.0,118700.0,0.65599009]
[1752425371077,0.3727,118670.0,118660.0,0.00315]
[1752425371315,1.09333811,118670.0,118660.0,0.13012]
[1752425371526,0.3565,118650.0,118630.0,1.20503]
[1752425371736,0.45812993,118650.0,118640.0,0.13024]
[1752425371959,1.09333811,118650.0,118630.0,1.20003]
[1752425372176,0.97520818,118640.0,118630.0,1.20003]
[1752425372362,0.97520818,118640.0,118630.0,1.2021]
[1752425372608,0.97520818,118640.0,118630.0,1.2000799]
[1752425372817,1.00790818,118640.0,118630.0,1.2000799]
[1752425373259,1.00790818,118640.0,118630.0,1.3315199]
[1752425374108,1.01372387,118640.0,118630.0,1.3315199]
[1752425374319,1.01372387,118640.0,118630.0,1.3335899]
[1752425374320,0.97520818,118640.0,118630.0,1.3335899]
[1752425375170,0.97520818,118640.0,118630.0,1.3345899]
[1752425376021,1.00048318,118640.0,118630.0,1.3345899]
[1752425376289,1.00878048,118640.0,118630.0,1.3345899]
[1752425376507,0.69117639,118640.0,118630.0,1.3496899]
[1752425376714,0.69117639,118640.0,118630.0,1.3646899]
[1752425377571,0.68287909,118640.0,118630.0,1.3646899]
[1752425378023,0.365275,118640.0,118630.0,1.3646899]
[1752425378233,0.68287909,118640.0,118630.0,1.3646899]
[1752425378448,0.365275,118640.0,118630.0,1.3646899]
[1752425378657,0.68287909,118640.0,118630.0,1.3646899]
[1752425379714,0.68287909,118640.0,118630.0,1.3647899]
[1752425379920,0.69139298,118640.0,118630.0,1.3647899]
[1752425380338,0.03378889,118640.0,118630.0,1.45021983]
[1752425380539,0.00851389,118640.0,118630.0,1.45021983]
[1752425380752,0.32611798,118640.0,118630.0,1.45021983]
[1752425380966,0.31760409,118640.0,118630.0,1.45021983]
[1752425381388,0.34287309,118650.0,118640.0,0.0313]
[1752425381600,0.34287309,118650.0,118640.0,0.16377]
[1752425381805,0.34287309,118650.0,118640.0,0.16692]
[1752425383073,0.35138821,118650.0,118640.0,0.16692]
[1752425383290,0.03378412,118650.0,118640.0,0.16692]
[1752425383500,0.35138821,118650.0,118640.0,0.15112]
[1752425384794,0.35138821,118650.0,118640.0,0.13562]
[1752425385004,0.6689923,118650.0,118640.0,0.13562]
[1752425385418,0.6846923,118650.0,118640.0,0.13562]
[1752425385641,0.76820507,118650.0,118640.0,0.1304]
[1752425385846,1.21233408,118650.0,118640.0,0.1304]
[1752425386057,1.26283408,118650.0,118640.0,0.1304]
[1752425389037,0.86171722,118650.0,118640.0,0.13355]
[1752425389245,0.84601722,118650.0,118640.0,0.13562]
[1752425392697,0.47791313,118650.0,118640.0,0.13562]
[1752425392915,0.69138821,118650.0,118640.0,0.13562]
[1752425393749,0.70648821,118650.0,118640.0,0.13355]
[1752425393953,0.72168821,118650.0,118640.0,0.13355]
[1752425394378,0.72168821,118650.0,118640.0,0.1304]
[1752425394584,0.72168821,118650.0,118640.0,0.13336]
[1752425394790,0.72168821,118650.0,118640.0,0.1304]
[1752425395400,0.34,118640.0,118630.0,1.1999899]
[1752425395674,0.65760409,118640.0,118630.0,1.3323199]
[1752425396087,0.68287509,118640.0,118630.0,1.3323199]
[1752425398293,0.68287509,118640.0,118630.0,1.3343199]
[1752425398713,0.68287509,118640.0,118630.0,1.3353199]
[1752425401161,1.01637918,118640.0,118630.0,1.3331899]
[1752425401382,1.01637918,118640.0,118630.0,1.3281899]
[1752425401601,1.03267918,118640.0,118630.0,1.1950299]
[1752425401811,1.03267918,118640.0,118630.0,1.3250699]
[1752425403059,1.03267918,118640.0,118630.0,1.3280299]
[1752425403472,1.03267918,118640.0,118630.0,1.3250699]
[1752425404675,1.03267918,118640.0,118630.0,1.3280299]
[1752425405081,0.397471,118640.0,118630.0,1.3280299]
[1752425405237,1.03267918,118640.0,118630.0,1.3280299]
[1752425405450,1.03267918,118640.0,118630.0,1.3301599]
[1752425406525,1.03267918,118640.0,118630.0,1.3280299]
[1752425406727,1.03267918,118640.0,118630.0,1.3250699]
[1752425409147,1.11810911,118640.0,118630.0,1.1950299]
[1752425409353,1.13680819,118640.0,118630.0,1.1950299]
[1752425409569,1.13680819,118640.0,118630.0,1.3251899]
[1752425410024,1.15134904,118640.0,118630.0,1.3251899]
[1752425410815,1.30540833,118640.0,118630.0,1.3231899]
[1752425411231,1.2199784,118640.0,118630.0,1.3231899]
[1752425411437,1.2199784,118640.0,118630.0,1.3221899]
[1752425411640,1.2209784,118640.0,118630.0,1.3221899]
[1752425411876,1.22098234,118640.0,118630.0,1.3221899]
[1752425412020,1.21998234,118640.0,118630.0,1.3221899]
[1752425412424,1.22198234,118640.0,118630.0,1.3221899]
[1752425414963,1.22498234,118640.0,118630.0,1.3221899]
[1752425418615,1.20684904,118640.0,118630.0,1.3221899]
[1752425419041,1.22499266,118640.0,118630.0,1.3221899]
[1752425422016,1.22499266,118640.0,118630.0,1.3219499]
[1752425422817,1.22499266,118640.0,118630.0,1.1920299]
[1752425423070,1.22499266,118640.0,118630.0,1.3219499]
[1752425424541,1.24730835,118640.0,118630.0,1.3219499]
[1752425424754,1.24730835,118640.0,118630.0,1.32170887]
[1752425425166,1.27000597,118640.0,118630.0,1.32170887]
[1752425425599,1.24730835,118640.0,118630.0,1.32170887]
[1752425426015,1.25573657,118640.0,118630.0,1.32170887]
[1752425426247,1.24730835,118640.0,118630.0,1.32170887]
[1752425427123,1.27843419,118640.0,118630.0,1.32170887]
[1752425427344,1.74832514,118640.0,118630.0,1.32170887]
[1752425427562,1.29529112,118640.0,118630.0,1.32170887]
[1752425427771,1.34529112,118640.0,118630.0,1.32170887]
[1752425427900,1.84832991,118640.0,118630.0,1.19178887]
[1752425428113,1.83990169,118640.0,118630.0,1.32158887]
[1752425428311,1.74832556,118640.0,118630.0,1.32158887]
[1752425428493,1.75675434,118640.0,118630.0,1.32158887]
[1752425428695,1.80675434,118640.0,118630.0,1.32158887]
[1752425429180,1.83691136,118640.0,118630.0,1.32158887]
[1752425429346,2.00548856,118640.0,118630.0,1.32158887]
[1752425429596,1.84534022,118640.0,118630.0,1.32158887]
[1752425429777,1.82848258,118640.0,118630.0,1.32158887]
[1752425429978,1.83691136,118640.0,118630.0,1.32158887]
[1752425430268,1.9970602,118640.0,118630.0,1.32158887]
[1752425430466,2.0201705,118640.0,118630.0,1.32158887]
[1752425430985,2.0171705,118640.0,118630.0,1.32158887]
[1752425431184,1.99247288,118640.0,118630.0,1.32158887]
[1752425431511,1.94800536,118640.0,118630.0,0.85626814]
[1752425431665,1.88568573,118640.0,118630.0,0.85626814]
[1752425431873,1.84025974,118640.0,118630.0,0.84784847]
[1752425432280,1.81760273,118640.0,118630.0,0.8394288]
[1752425432485,1.68011111,118640.0,118630.0,0.8394288]
[1752425432679,1.8260313,118640.0,118630.0,0.83100913]
[1752425433149,1.8260313,118640.0,118630.0,0.82258946]
[1752425433599,1.8260313,118640.0,118630.0,0.81416979]
[1752425433859,1.66588232,118640.0,118630.0,0.80574914]
[1752425434104,1.3793641,118640.0,118630.0,0.80574914]
[1752425434343,1.34864967,118640.0,118630.0,0.79732849]
[1752425434581,1.40494759,118640.0,118630.0,0.79732849]
[1752425434823,1.40494759,118640.0,118630.0,0.78890784]
[1752425435069,1.40494759,118640.0,118630.0,0.78048719]
[1752425435308,1.34864967,118640.0,118630.0,0.78048719]
[1752425435553,1.64359675,118640.0,118630.0,0.77206654]
[1752425436043,1.64359675,118640.0,118630.0,0.76364589]
[1752425436324,1.32599266,118640.0,118630.0,0.75522524]
[1752425436581,1.64359675,118640.0,118630.0,0.75522524]
[1752425436838,1.64359675,118640.0,118630.0,0.74680459]
[1752425437089,1.32599266,118640.0,118630.0,0.73838394]
[1752425437633,1.32599266,118640.0,118630.0,0.72996329]
[1752425437842,1.32599266,118640.0,118630.0,0.72154264]
[1752425438370,1.32599266,118640.0,118630.0,0.71312199]
[1752425438612,1.32599266,118640.0,118630.0,0.70470134]
[1752425439146,1.32599266,118640.0,118630.0,0.69628069]
[1752425440202,1.34830835,118640.0,118630.0,0.69628069]
[1752425441221,1.66591244,118640.0,118630.0,0.69628069]
[1752425441495,1.70868993,118640.0,118630.0,0.69628069]
[1752425441784,1.73134694,118640.0,118630.0,0.69628069]
[1752425442874,1.73134694,118640.0,118630.0,0.68786014]
[1752425443136,1.73134694,118640.0,118630.0,0.67943959]
[1752425443631,1.71872647,118640.0,118630.0,0.67943959]
[1752425443853,1.68856945,118640.0,118630.0,0.67943959]
[1752425444078,1.71872647,118640.0,118630.0,0.67943959]
[1752425444289,1.64606946,118640.0,118630.0,0.67943959]
[1752425444503,1.71870819,118640.0,118630.0,0.67943959]
[1752425445579,1.7187099,118640.0,118630.0,0.67943959]
[1752425446015,1.78149939,118640.0,118630.0,0.67943959]
[1752425446226,1.37846537,118640.0,118630.0,0.67943959]
[1752425446872,1.35614968,118640.0,118630.0,0.67943959]
[1752425447086,1.30614968,118640.0,118630.0,0.67943959]
[1752425447313,1.35614968,118640.0,118630.0,0.67943959]
[1752425448348,1.40138521,118640.0,118630.0,0.67943959]
[1752425450675,1.40138521,118640.0,118630.0,0.47755959]
[1752425450888,0.59704027,118640.0,118630.0,0.51348959]
[1752425451137,1.02456823,118640.0,118630.0,0.51348959]
[1752425451347,1.02005273,118640.0,118630.0,0.51348959]
[1752425451756,1.36005273,118640.0,118630.0,0.51348959]
[1752425452699,1.37459358,118640.0,118630.0,0.51348959]
[1752425453579,1.37458223,118640.0,118630.0,0.51348959]
[1752425453875,0.73937405,118640.0,118630.0,0.51348959]
[1752425454078,1.37458223,118640.0,118630.0,0.51348959]
[1752425456446,1.35644996,118640.0,118630.0,0.51348959]
[1752425456656,1.37514904,118640.0,118630.0,0.48268959]
[1752425456886,0.73994086,118640.0,118630.0,0.48268959]
[1752425457097,0.73994086,118640.0,118630.0,0.49868959]
[1752425457098,1.39327507,118640.0,118630.0,0.49868959]
[1752425457633,1.39327507,118640.0,118630.0,0.48268959]
[1752425459000,1.39327507,118640.0,118630.0,0.49868959]
[1752425459221,1.39327507,118640.0,118630.0,0.48268959]
[1752425460276,1.39327507,118640.0,118630.0,0.51518959]
[1752425460439,0.68430502,118640.0,118630.0,0.51518959]
[1752425460695,0.69884587,118640.0,118630.0,0.51518959]
[1752425460896,1.03884587,118640.0,118630.0,0.51518959]
[1752425461442,1.35344996,118640.0,118630.0,0.51518959]
[1752425461939,1.35044996,118640.0,118630.0,0.51518959]
[1752425462147,1.35144996,118640.0,118630.0,0.51518959]
[1752425465910,1.40194996,118640.0,118630.0,0.51518959]
[1752425466109,1.35144996,118640.0,118630.0,0.51518959]
[1752425470244,0.366271,118640.0,118630.0,0.51518959]
[1752425470446,0.34387509,118640.0,118630.0,0.51518959]
[1752425470844,0.68387509,118640.0,118630.0,0.51518959]
[1752425471050,0.68287509,118640.0,118630.0,0.51518959]
[1752425471251,0.68287509,118640.0,118630.0,0.51718959]
[1752425473940,0.68287509,118640.0,118630.0,0.71918959]
[1752425474988,1.00047918,118640.0,118630.0,0.70308959]
[1752425475199,1.36914904,118640.0,118630.0,0.70308959]
[1752425475411,1.38524904,118640.0,118630.0,0.68668959]
[1752425475833,1.40124904,118640.0,118630.0,0.68155959]
[1752425476050,1.53717897,118640.0,118630.0,0.68055959]
[1752425476259,1.45174904,118640.0,118630.0,0.68055959]
[1752425476875,1.51860583,118640.0,118630.0,0.68055959]
[1752425477083,1.84463856,118640.0,118630.0,0.67955959]
[1752425477289,1.82778142,118640.0,118630.0,0.67955959]
[1752425477710,1.51017733,118640.0,118630.0,0.67955959]
[1752425478125,1.51317733,118640.0,118630.0,0.67955959]
[1752425478325,1.51417733,118640.0,118630.0,0.67955959]
[1752425478534,1.60803569,118640.0,118630.0,0.67955959]
[1752425478952,1.92563978,118640.0,118630.0,0.67955959]
[1752425479163,1.91721135,118640.0,118630.0,0.67955959]
[1752425479580,1.59860726,118640.0,118630.0,0.67955959]
[1752425479804,1.73704167,118640.0,118630.0,0.67955959]
[1752425480012,1.65161174,118640.0,118630.0,0.67955959]
[1752425480231,1.97764447,118640.0,118630.0,0.67955959]
[1752425480444,1.9776444,118640.0,118630.0,0.67955959]
[1752425480661,1.96078712,118640.0,118630.0,0.67955959]
[1752425480866,1.96921583,118640.0,118630.0,0.67955959]
[1752425481076,2.11307462,118640.0,118630.0,0.67955959]
[1752425481300,2.0607879,118640.0,118630.0,0.67955959]
[1752425481937,2.07887955,118640.0,118630.0,0.67955959]
[1752425482790,2.10119524,118640.0,118630.0,0.67955959]
[1752425486399,2.10119524,118640.0,118630.0,0.67113854]
[1752425486640,2.15186891,118640.0,118630.0,0.67113854]
[1752425486879,2.10119524,118640.0,118630.0,0.66271749]
[1752425487325,2.10119524,118640.0,118630.0,0.65429644]
[1752425487754,2.10119524,118640.0,118630.0,0.64587539]
[1752425487990,0.97202217,118610.0,118600.0,0.1]
[1752425488217,2.05127914,118610.0,118600.0,0.1000499]
[1752425488441,2.13670907,118610.0,118600.0,0.09162885]